bitfinex/quotes_ETHUSD_20260209
["timestamp","ask_amount","ask_price","bid_price","bid_amount"]
[1770606319615,3.351,2085.4,2084.7,0.04586049]
[1770606320137,4.54982571,2085.4,2084.7,0.04586049]
[1770606320718,3.351,2085.4,2084.8,1.19915579]
[1770606320906,0.002,2085.6,2085.0,0.04586049]
[1770606321238,1.20069695,2085.6,2084.8,1.19915579]
[1770606323017,0.002,2085.6,2084.8,1.19915579]
[1770606324074,0.002,2085.6,2085.0,0.04586049]
[1770606324361,0.002,2085.6,2085.0,0.99748746]
[1770606324861,0.002,2085.6,2085.0,0.04586049]
[1770606325224,0.002,2085.6,2085.1,1.19898326]
[1770606326156,0.95191161,2085.3,2084.2,0.001]
[1770606326363,0.95191161,2085.1,2084.2,1.20049666]
[1770606326655,0.95191161,2085.1,2084.2,0.001]
[1770606327154,0.95191161,2084.9,2084.2,0.001]
[1770606328066,0.95191161,2084.9,2084.4,0.001]
[1770606328228,0.95191161,2084.9,2084.2,0.001]
[1770606329140,2.1510674,2084.8,2084.2,0.001]
[1770606329354,0.95191161,2084.7,2084.2,0.001]
[1770606330850,1.19915579,2084.8,2084.2,0.001]
[1770606331072,3.351,2084.6,2084.2,0.001]
[1770606331434,4.55028472,2084.6,2084.2,0.001]
[1770606331643,3.351,2084.6,2084.2,0.001]
[1770606332631,1.19919984,2084.8,2084.2,0.001]
[1770606333177,4.55201176,2085.1,2084.4,1.19938591]
[1770606334570,4.55198798,2085.1,2084.4,1.19938591]
[1770606334770,4.55198763,2085.1,2084.4,1.19938591]
[1770606335275,3.353,2085.1,2084.4,1.19938591]
[1770606335477,4.5519907,2085.1,2084.4,1.19938591]
[1770606335688,3.353,2085.1,2084.4,1.19938591]
[1770606335849,3.353,2085.1,2084.4,2.15101288]
[1770606336050,4.55198516,2085.1,2084.4,2.15101288]
[1770606336360,0.002,2085.1,2084.5,0.95162697]
[1770606337464,0.002,2085.1,2084.6,1.19927084]
[1770606337669,0.002,2085.1,2084.6,2.1967583]
[1770606338049,0.002,2085.1,2084.6,1.19927084]
[1770606338468,0.002,2085.1,2084.5,1.19928302]
[1770606339774,0.002,2085.1,2084.6,0.04586049]
[1770606339980,0.002,2085.1,2084.6,0.99748746]
[1770606340774,0.002,2085.1,2084.6,0.99848746]
[1770606340950,0.002,2084.9,2084.6,0.99848746]
[1770606341654,0.002,2085.6,2084.9,0.04586049]
[1770606342256,0.002,2085.6,2085.0,1.19904076]
[1770606344984,0.002,2085.6,2085.2,0.04586049]
[1770606345174,0.002,2086.0,2085.2,0.99849341]
[1770606345975,0.95404325,2085.9,2085.0,1.19904076]
[1770606346175,0.7,2085.8,2085.0,1.19904076]
[1770606346459,1.19863834,2085.7,2084.8,1.19915579]
[1770606346888,1.19863834,2085.7,2084.9,0.04586049]
[1770606348391,0.002,2086.0,2085.5,0.04586049]
[1770606348894,1.20049319,2086.0,2085.0,2.15167368]
[1770606349095,2.15453644,2086.0,2084.9,1.19906771]
[1770606349400,2.15453644,2086.0,2084.9,1.2449282]
[1770606350170,1.20049319,2086.0,2085.0,0.95263292]
[1770606350370,0.002,2086.0,2085.1,1.19898326]
[1770606351108,0.002,2086.0,2085.5,0.99849341]
[1770606351395,0.002,2086.2,2085.5,0.99849341]
[1770606352512,0.002,2086.2,2085.6,1.19869581]
[1770606353801,0.002,2086.2,2085.9,0.04586049]
[1770606354000,0.002,2086.0,2085.9,0.04586049]
[1770606354203,0.002,2086.2,2085.9,0.04586049]
[1770606355370,0.002,2086.2,2086.0,1.19846596]
[1770606356480,0.002,2086.4,2086.0,1.19846596]
[1770606356676,0.002,2086.6,2086.2,0.04586049]
[1770606356993,0.002,2086.6,2086.0,1.19846596]
[1770606357809,0.002,2086.6,2086.0,2.15109888]
[1770606360809,0.002,2086.6,2085.7,1.19861165]
[1770606360810,0.95604325,2086.6,2085.7,1.19861165]
[1770606361011,0.95604325,2086.6,2085.8,1.1985764]
[1770606361198,0.7,2086.4,2085.8,1.1985764]
[1770606361721,0.95404325,2086.3,2085.3,1.1988348]
[1770606361889,0.95404325,2086.3,2085.2,4.79570174]
[1770606361890,0.95404325,2086.3,2085.4,1.19880311]
[1770606362216,0.95404325,2086.3,2085.3,1.1988292]
[1770606362413,0.95404325,2086.3,2085.4,1.19880178]
[1770606362910,2.15239431,2086.2,2085.0,4.79616245]
[1770606363097,0.95404325,2086.1,2085.0,4.79616245]
[1770606363294,0.95404325,2086.1,2085.2,0.04586049]
[1770606363500,1.19835106,2086.2,2085.2,0.99849341]
[1770606365512,1.1983313,2086.3,2085.5,0.04586049]
[1770606366098,2.15237455,2086.3,2085.3,1.19886826]
[1770606366325,0.002,2086.0,2085.3,2.15150118]
[1770606367709,0.002,2086.0,2085.6,1.19869581]
[1770606369510,0.002,2086.0,2085.6,2.15132873]
[1770606370326,0.002,2086.2,2085.8,0.99849341]
[1770606370531,0.002,2086.6,2085.8,0.99849341]
[1770606371212,0.002,2086.9,2086.1,0.04586049]
[1770606371413,1.19995153,2086.9,2086.1,0.04586049]
[1770606373729,0.95604325,2086.9,2086.2,1.19835106]
[1770606374032,0.95604325,2086.9,2086.0,1.1984304]
[1770606375238,0.95604325,2086.9,2086.1,1.19840549]
[1770606376110,2.15887486,2086.8,2085.9,1.19852341]
[1770606376631,4.79400045,2086.9,2085.9,1.19852341]
[1770606376632,0.002,2086.9,2086.1,1.02080305]
[1770606377610,1.19997861,2086.9,2086.1,1.02080305]
[1770606378438,1.19997861,2086.9,2086.2,1.19835106]
[1770606378439,0.002,2086.9,2086.2,1.19835106]
[1770606379555,0.002,2086.7,2086.2,1.19835106]
[1770606382541,0.002,2086.7,2086.4,0.04586049]
[1770606383134,0.002,2086.7,2086.5,1.19817876]
[1770606383333,10.27,2087.7,2086.6,0.97494256]
[1770606383334,1.19757525,2087.6,2086.6,0.97494256]
[1770606383523,1.19757525,2087.6,2086.7,0.04586049]
[1770606383730,0.96161493,2087.5,2086.5,1.19817876]
[1770606384634,1.19757525,2087.6,2086.7,0.04586049]
[1770606386249,5.75179678,2087.7,2086.8,1.19800651]
[1770606387453,0.002,2087.8,2087.0,1.02080305]
[1770606388454,0.002,2087.8,2087.1,1.19783431]
[1770606388629,0.002,2087.8,2087.3,1.02080305]
[1770606388945,0.002,2087.8,2087.6,0.04586049]
[1770606389933,2.15870562,2088.4,2087.6,0.04586049]
[1770606390252,1.19697404,2088.6,2087.5,0.97494256]
[1770606390483,2.15858897,2088.6,2087.7,0.04586049]
[1770606390806,3.348,2088.9,2088.0,0.04586049]
[1770606390807,1.19685638,2088.9,2088.0,0.04586049]
[1770606391048,0.96161493,2088.8,2087.7,1.19745337]
[1770606392349,1.19685638,2088.9,2087.7,1.19745337]
[1770606392350,0.96361493,2088.7,2087.7,1.19745337]
[1770606392850,1.19697404,2088.6,2087.7,1.19745337]
[1770606394748,5.75151112,2088.7,2087.9,1.02080305]
[1770606394749,0.002,2088.7,2087.9,1.02080305]
[1770606394951,0.002,2088.7,2088.0,2.17226056]
[1770606395851,0.002,2088.7,2088.1,0.97494256]
[1770606396539,0.002,2088.7,2088.0,1.197318]
[1770606396939,0.00658712,2089.4,2088.4,0.34896072]
[1770606397274,0.00658712,2089.4,2088.6,0.04586049]
[1770606397428,2.16471822,2089.4,2088.3,0.04586049]
[1770606397739,0.96161493,2089.3,2088.3,3.39286049]
[1770606398144,0.96161493,2089.3,2087.9,0.04586049]
[1770606398974,0.96161493,2089.1,2088.0,1.197318]
[1770606399864,0.96161493,2089.1,2088.2,0.04586049]
[1770606400441,1.19660307,2089.3,2088.2,0.04586049]
[1770606400638,1.20314648,2089.4,2088.2,0.04586049]
[1770606400863,2.16476141,2089.4,2088.3,1.197146]
[1770606401456,2.1647366,2089.4,2088.5,0.04586049]
[1770606401764,0.96161493,2089.3,2088.3,1.197146]
[1770606402943,1.19663028,2089.2,2088.1,1.19726066]
[1770606403146,0.96161493,2089.1,2088.1,1.19726066]
[1770606403361,0.96161493,2089.1,2088.0,1.19731539]
[1770606405072,1.19648848,2089.5,2088.5,0.04586049]
[1770606405573,0.002,2089.1,2088.5,0.04586049]
[1770606405774,0.002,2089.1,2088.5,0.04236267]
[1770606406655,0.002,2089.1,2088.3,1.197146]
[1770606407863,0.98370353,2089.1,2088.2,1.19719281]
[1770606408254,0.002,2089.1,2088.2,1.2430533]
[1770606408446,0.98370353,2089.1,2088.2,1.2430533]
[1770606408650,0.98370353,2089.1,2088.2,1.19719281]
[1770606409478,0.98370353,2089.1,2088.2,0.04586049]
[1770606409775,2.18039188,2089.1,2088.2,0.04586049]
[1770606411383,0.002,2089.1,2088.6,1.19697404]
[1770606412169,2.17805674,2089.7,2088.6,4.54197404]
[1770606412477,0.98170353,2089.6,2088.6,4.54197404]
[1770606413484,0.98170353,2089.6,2088.6,1.19697404]
[1770606413485,2.17816201,2089.5,2088.6,1.19697404]
[1770606413782,2.17816201,2089.5,2088.6,4.54197404]
[1770606415060,0.98170353,2089.5,2088.6,4.54197404]
[1770606416172,1.19651574,2089.4,2088.6,4.54197404]
[1770606416367,4.78546209,2089.7,2088.6,4.54197404]
[1770606416578,1.19642343,2089.6,2088.6,4.54197404]
[1770606416778,0.98170353,2089.5,2088.2,0.04586049]
[1770606416978,0.98170353,2089.5,2088.5,1.1970312]
[1770606417183,0.98170353,2089.5,2088.2,3.39086049]
[1770606417484,0.98170353,2089.5,2088.5,1.19698608]
[1770606417782,0.98089609,2089.5,2088.5,1.19698608]
[1770606418082,0.97914736,2089.5,2088.2,8.17961169]
[1770606418260,0.98170353,2089.3,2088.3,1.197146]
[1770606419485,0.98170353,2089.3,2088.4,0.001]
[1770606419684,0.98370353,2089.3,2088.4,0.001]
[1770606419884,0.98170353,2088.8,2087.9,0.001]
[1770606420088,0.98170353,2088.4,2087.6,0.001]
[1770606420385,0.98170353,2088.2,2087.7,0.001]
[1770606420799,0.98170353,2088.2,2087.6,0.001]
[1770606421087,0.98170353,2088.2,2087.3,0.001]
[1770606421383,0.98170353,2088.2,2087.4,0.001]
[1770606422283,0.98170353,2088.0,2086.7,3.345]
[1770606422457,0.98170353,2088.0,2086.8,4.021114]
[1770606422661,0.98170353,2088.0,2086.7,3.345]
[1770606422865,0.98170353,2088.0,2086.8,4.021114]
[1770606424291,0.98170353,2088.0,2086.9,0.04586049]
[1770606424876,2.17907888,2087.9,2086.9,0.04586049]
[1770606425086,0.98170353,2087.8,2086.2,0.1024]
[1770606425293,0.98170353,2087.8,2086.5,0.04586049]
[1770606426693,0.98170353,2087.8,2086.4,0.001]
[1770606426882,0.98170353,2087.6,2086.4,0.001]
[1770606427692,1.19749006,2087.7,2086.8,0.04586049]
[1770606427991,1.19749006,2087.7,2086.6,11.928576]
[1770606428196,1.19749006,2087.7,2086.8,0.04586049]
[1770606428892,2.17919359,2087.7,2086.8,0.04586049]
[1770606429066,0.98170353,2087.6,2086.4,0.001]
[1770606430866,0.98170353,2087.4,2086.4,0.001]
[1770606433204,0.98170353,2087.2,2086.6,0.001]
[1770606433418,0.98170353,2087.1,2086.4,0.001]
[1770606433777,0.98170353,2086.7,2085.5,1.19871596]
[1770606434010,0.98170353,2086.7,2085.5,1.19971596]
[1770606435008,0.98170353,2086.7,2085.5,0.001]
[1770606435383,0.91710242,2086.5,2085.5,0.001]
[1770606437407,2.17791684,2086.8,2085.7,1.19863834]
[1770606437711,0.97988638,2086.8,2085.7,1.19863834]
[1770606438108,2.17777269,2087.1,2085.9,0.04586049]
[1770606438702,0.97988638,2087.1,2086.0,0.04586049]
[1770606439507,2.17743447,2087.6,2086.3,0.39837738]
[1770606440101,0.97988638,2087.5,2086.3,0.39837738]
[1770606441389,0.97988638,2087.5,2086.4,1.19823619]
[1770606441715,4.79175622,2087.8,2086.6,0.04586049]
[1770606441716,2.1793624,2087.8,2086.6,0.04586049]
[1770606442194,0.97988638,2087.7,2086.6,0.04586049]
[1770606442599,0.97988638,2087.7,2086.5,5.412584]
[1770606443402,0.97988638,2087.7,2086.6,0.04586049]
[1770606443606,0.97988638,2087.7,2086.7,1.19806392]
[1770606443812,0.002,2087.8,2086.9,0.04586049]
[1770606444523,0.002,2087.8,2087.2,0.04586049]
[1770606445536,3.348,2088.5,2087.5,0.04586049]
[1770606445703,0.97988638,2088.4,2087.3,1.24358003]
[1770606446024,0.97988638,2088.4,2087.3,1.19771954]
[1770606446528,0.97988638,2088.4,2086.8,0.04586049]
[1770606446692,0.002,2087.5,2087.2,1.19777546]
[1770606448496,0.002,2087.5,2086.9,1.19794911]
[1770606449602,0.002,2087.5,2087.0,0.04586049]
[1770606450033,0.97988638,2088.3,2087.3,0.04586049]
[1770606451702,0.97988638,2088.3,2087.4,1.19766216]
[1770606451899,0.97988638,2088.1,2086.3,0.001]
[1770606452130,0.97988638,2087.8,2087.0,1.19788864]
[1770606452305,0.97988638,2087.8,2087.1,1.19782608]
[1770606452707,0.97988638,2087.8,2087.0,4.79154859]
[1770606452708,0.97988638,2087.8,2087.2,1.19777194]
[1770606452905,0.97988638,2088.2,2087.3,1.19771551]
[1770606454809,0.97988638,2088.2,2087.0,1.19789171]
[1770606454810,0.97988638,2088.0,2087.0,1.19789171]
[1770606455831,0.97988638,2088.0,2086.9,4.79173802]
[1770606456044,0.97988638,2088.0,2086.9,1.19790824]
[1770606456537,0.97988638,2088.0,2086.9,1.19794281]
[1770606456920,0.97988638,2087.8,2086.6,1.19812134]
[1770606458516,0.97988638,2087.7,2086.6,1.19812134]
[1770606459036,0.97988638,2087.7,2086.5,4.79248538]
[1770606459037,0.97988638,2087.5,2086.3,1.19929362]
[1770606459539,0.97988638,2087.5,2086.5,0.04586049]
[1770606459745,0.97988638,2087.5,2086.6,6.242693]
[1770606460038,0.002,2087.6,2086.8,0.04586049]
[1770606461338,0.002,2087.6,2086.9,1.19794911]
[1770606465147,0.002,2087.6,2087.0,0.35251689]
[1770606465746,0.002,2087.6,2087.1,0.04586049]
[1770606466246,0.002,2087.6,2086.9,1.19794911]
[1770606466631,0.002,2087.6,2086.7,4.79186335]
[1770606467217,0.94305221,2087.6,2086.7,4.79186335]
[1770606468939,0.94305221,2087.6,2086.6,1.19806392]
[1770606471133,0.002,2087.6,2086.6,1.55058081]
[1770606472050,0.002,2087.6,2086.8,0.39837738]
[1770606472259,0.002,2087.6,2086.9,7.189434]
[1770606472931,0.002,2087.6,2087.0,1.19789171]
[1770606474159,0.94305221,2087.6,2087.0,1.19789171]
[1770606474558,0.002,2087.6,2087.0,1.19789171]
[1770606474973,0.002,2087.6,2087.1,0.04586049]
[1770606477264,0.002,2087.6,2087.2,1.19777692]
[1770606478870,0.002,2087.8,2087.2,1.19777692]
[1770606480350,0.94305221,2087.8,2087.2,1.19777692]
[1770606480750,0.94305221,2087.8,2087.1,1.19779374]
[1770606480951,0.94305221,2087.8,2086.8,0.04686049]
[1770606480952,0.94305221,2087.8,2086.8,0.001]
[1770606481162,0.94105221,2087.6,2086.8,0.001]
[1770606483166,0.94105221,2087.4,2086.8,0.001]
[1770606486069,0.94305221,2087.4,2086.8,0.001]
[1770606487182,0.94105221,2087.3,2086.8,0.001]
[1770606487551,0.94105221,2087.2,2086.8,0.001]
[1770606487856,0.002,2087.4,2086.8,0.001]
[1770606488180,0.94305221,2087.4,2086.8,0.001]
[1770606491888,0.002,2087.4,2086.8,0.001]
[1770606492264,0.94305221,2087.4,2086.8,0.001]
[1770606494675,0.002,2087.4,2086.8,0.001]
[1770606495591,0.91569242,2087.4,2086.8,0.001]
[1770606495964,0.91369242,2087.3,2086.8,0.001]
[1770606496166,0.91369242,2087.3,2086.5,0.001]
[1770606498101,0.90482314,2087.3,2086.5,0.001]
[1770606499189,0.90482314,2087.3,2087.0,0.001]
[1770606500196,0.002,2087.4,2087.0,0.001]
[1770606503187,0.90682314,2087.4,2087.0,0.001]
[1770606503578,0.002,2087.4,2087.0,0.001]
[1770606503996,0.90682314,2087.4,2087.0,0.001]
[1770606506087,0.002,2087.4,2087.0,0.001]
[1770606506397,0.90682314,2087.4,2087.0,0.001]
[1770606507209,0.90482314,2087.3,2086.7,1.19806392]
[1770606507905,0.90482314,2087.3,2086.5,0.001]
[1770606509901,0.90482314,2087.2,2086.5,0.001]
[1770606512389,0.90482314,2087.0,2086.5,0.001]
[1770606514014,0.90482314,2087.0,2086.3,0.001]
[1770606514209,0.90482314,2087.0,2086.7,0.001]
[1770606514413,1.19794789,2087.0,2086.7,0.001]
[1770606514616,0.90482314,2086.9,2086.7,0.001]
[1770606514990,0.90482314,2086.9,2086.3,0.001]
[1770606517014,0.90482314,2086.7,2086.3,0.001]
[1770606517598,0.90482314,2087.0,2086.3,0.001]
[1770606519898,0.90482314,2086.9,2086.3,0.001]
[1770606521922,0.6,2086.7,2086.3,0.001]
[1770606524917,0.90482314,2086.9,2086.3,0.001]
[1770606526538,0.94590096,2087.0,2086.3,0.001]
[1770606526833,0.94590096,2087.0,2086.5,0.001]
[1770606528241,0.94590096,2086.8,2086.5,0.001]
[1770606529813,0.94590096,2086.6,2085.6,0.001]
[1770606530153,0.94590096,2086.4,2085.6,1.19969212]
[1770606530311,0.94590096,2086.2,2085.6,0.001]
[1770606530940,0.94590096,2086.2,2085.5,0.001]
[1770606532320,0.94590096,2085.9,2085.5,0.001]
[1770606532521,1.79851997,2086.0,2085.5,0.001]
[1770606532522,4.29390096,2085.8,2085.5,0.001]
[1770606533554,3.348,2085.8,2085.5,0.001]
[1770606536048,0.94590096,2086.1,2085.5,0.001]
[1770606536562,0.94590096,2086.3,2085.5,0.001]
[1770606537273,0.6,2086.1,2085.5,0.001]
[1770606540074,1.19823619,2086.4,2085.5,0.001]
[1770606540075,0.94590096,2086.4,2085.5,0.001]
[1770606541159,3.349,2086.5,2085.5,0.35451689]
[1770606541339,0.94590096,2086.4,2085.5,0.001]
[1770606541537,1.19818026,2086.5,2085.5,0.35451689]
[1770606541737,0.94590096,2086.7,2085.7,0.001]
[1770606541952,0.94590096,2086.5,2085.7,0.001]
[1770606542352,0.002,2086.6,2085.7,0.35451689]
[1770606542970,0.94790096,2086.6,2085.7,0.35451689]
[1770606543662,0.94790096,2086.6,2085.7,0.001]
[1770606544064,0.94590096,2086.4,2085.7,0.001]
[1770606544561,0.94790096,2086.6,2085.7,0.001]
[1770606544935,0.94590096,2086.5,2085.7,0.001]
[1770606545663,0.002,2086.6,2085.7,0.001]
[1770606546161,0.002,2086.6,2085.7,1.19963834]
[1770606546356,0.94790096,2086.6,2085.7,1.19963834]
[1770606548663,0.94590096,2086.5,2085.7,0.001]
[1770606551063,0.94590096,2086.4,2085.7,0.001]
[1770606552881,0.94790096,2086.6,2085.7,0.35451689]
[1770606554263,0.94790096,2086.6,2085.8,0.04586049]
[1770606554469,0.94790096,2086.6,2085.9,0.001]
[1770606554695,0.002,2086.4,2085.9,0.001]
[1770606554893,0.002,2086.4,2085.9,1.19952341]
[1770606556565,0.93150935,2086.4,2085.9,0.001]
[1770606559975,0.002,2086.4,2085.9,0.001]
[1770606562376,0.93150935,2086.4,2085.9,0.001]
[1770606565290,0.002,2086.4,2085.9,0.001]
[1770606565477,0.92950935,2086.3,2085.9,0.001]
[1770606567480,0.92950935,2086.3,2086.1,0.001]
[1770606567978,0.002,2086.2,2086.1,0.001]
[1770606570415,0.93150935,2086.2,2086.1,0.001]
[1770606571599,0.002,2086.2,2086.1,0.001]
[1770606578286,0.005452,2086.2,2086.1,0.001]
[1770606578626,0.93496135,2086.2,2086.1,0.001]
[1770606579929,0.005452,2086.2,2086.1,0.001]
[1770606582516,0.005452,2086.2,2085.5,0.001]
[1770606582517,0.92950935,2086.1,2085.5,0.001]
[1770606582926,0.92950935,2086.0,2085.5,0.001]
[1770606585221,0.005452,2086.2,2085.5,0.35551689]
[1770606587006,0.94142533,2086.1,2085.6,1.19869581]
[1770606589121,0.94142533,2086.1,2085.5,0.001]
[1770606591626,0.94142533,2086.1,2085.4,0.001]
[1770606591627,0.94142533,2085.7,2085.4,0.001]
[1770606592030,0.94142533,2085.7,2085.3,0.001]
[1770606592533,0.94142533,2085.7,2085.0,1.19900152]
[1770606592730,3.35,2085.8,2085.0,9.83676517]
[1770606593431,2.13987688,2086.1,2085.1,0.35451689]
[1770606593608,0.005452,2086.2,2085.4,8.28324676]
[1770606593802,0.005452,2086.2,2085.7,0.001]
[1770606593803,0.94142533,2086.1,2085.7,0.001]
[1770606594018,0.94142533,2086.1,2085.2,1.19892576]
[1770606594333,0.002,2086.0,2085.5,0.001]
[1770606597341,0.94342533,2086.0,2085.5,0.001]
[1770606597532,0.002,2086.0,2085.5,0.001]
[1770606598640,0.94342533,2086.0,2085.5,0.001]
[1770606601044,0.002,2086.0,2085.5,0.001]
[1770606602539,0.002,2086.0,2085.5,0.35551689]
[1770606603042,0.002,2086.0,2085.6,1.19869581]
[1770606603545,0.002,2086.0,2085.6,1.5532127]
[1770606604344,0.005452,2086.2,2085.7,0.35451689]
[1770606605020,1e-08,2086.2,2085.8,1.19858088]
[1770606606046,1e-08,2086.2,2085.8,1.55309777]
[1770606606249,0.002,2086.0,2085.8,1.55309777]
[1770606609650,0.002,2086.0,2085.8,1.19858088]
[1770606611153,1e-08,2086.6,2085.8,0.35451689]
[1770606611753,0.94142534,2086.6,2085.6,0.35451689]
[1770606612327,1.64142534,2086.6,2085.6,0.35451689]
[1770606612531,0.94142534,2086.6,2085.6,0.35451689]
[1770606612935,0.94142533,2086.5,2085.5,0.001]
[1770606613251,0.94142533,2086.3,2085.5,0.001]
[1770606615158,0.94142533,2086.3,2085.5,1.19975329]
[1770606615961,0.92716939,2086.5,2085.6,0.35451689]
[1770606616135,0.92716939,2086.5,2085.5,1.19975329]
[1770606617260,0.7,2086.3,2085.5,1.19975329]
[1770606617958,0.92716939,2086.5,2085.5,1.55427018]
[1770606618563,0.92716939,2086.5,2085.6,0.35451689]
[1770606618944,0.92716939,2086.5,2085.7,0.001]
[1770606619258,0.002,2086.3,2085.7,1.19963834]
[1770606621962,0.002,2086.5,2085.8,0.35451689]
[1770606622152,0.002,2086.5,2086.0,0.04586049]
[1770606622470,0.002,2086.5,2085.7,1.55415523]
[1770606622959,0.90645578,2086.5,2085.7,1.55415523]
[1770606623653,0.002,2086.5,2085.8,0.35451689]
[1770606624353,0.002,2086.5,2085.9,1.19852341]
[1770606624959,0.002,2086.5,2085.9,1.5530403]
[1770606625167,0.002,2086.5,2085.9,1.19852341]
[1770606626362,0.002,2086.5,2085.8,4.79409367]
[1770606627448,0.002,2086.5,2085.9,0.35451689]
[1770606627640,0.002,2086.5,2085.9,0.40037738]
[1770606628138,1e-08,2086.6,2086.0,0.35451689]
[1770606628538,1e-08,2086.6,2086.1,1.5529254]
[1770606628754,1e-08,2086.6,2086.2,0.35451689]
[1770606630750,1e-08,2086.6,2086.3,1.19829362]
[1770606631850,0.002,2086.5,2086.3,1.19829362]
[1770606632479,0.002,2086.8,2086.3,1.19829362]
[1770606635383,0.002,2086.8,2086.2,4.79317451]
[1770606636093,0.90645578,2086.8,2086.2,4.79317451]
[1770606636988,0.90645578,2086.8,2086.2,1.19835106]
[1770606637566,0.90645578,2086.8,2085.9,0.001]
[1770606640386,0.90645578,2086.8,2085.9,0.35551689]
[1770606641785,0.90645578,2086.8,2086.0,1.19846596]
[1770606642284,0.90445578,2086.7,2086.0,1.19846596]
[1770606642672,0.7,2086.6,2086.0,1.19846596]
[1770606642990,1.60445578,2086.6,2086.0,1.19846596]
[1770606643287,0.90445578,2086.6,2086.0,1.19846596]
[1770606643792,0.90445578,2086.6,2086.2,0.001]
[1770606644083,0.90645578,2086.6,2086.2,0.001]
[1770606645780,0.002,2086.6,2085.9,0.001]
[1770606645965,0.93205034,2086.2,2085.9,0.001]
[1770606648388,0.93205034,2086.1,2085.9,0.001]
[1770606648681,0.7,2086.0,2085.9,0.001]
[1770606649082,0.93205034,2086.3,2085.9,0.001]
[1770606650471,0.93205034,2086.2,2085.9,0.001]
[1770606652765,0.93205034,2086.0,2085.1,0.001]
[1770606652984,0.93205034,2086.0,2085.3,1.19886092]
[1770606653598,0.7,2085.8,2085.3,1.19886092]
[1770606654186,0.7,2085.8,2085.1,0.35651689]
[1770606654395,0.7,2085.8,2085.3,0.35551689]
[1770606654801,0.93205034,2086.4,2085.3,0.35551689]
[1770606655091,0.93205034,2086.3,2085.3,0.35551689]
[1770606655490,0.93205034,2086.3,2085.1,0.35651689]
[1770606656472,0.93205034,2086.2,2085.5,0.001]
[1770606656687,0.93405034,2086.1,2085.5,0.001]
[1770606658706,1.63205034,2086.0,2085.5,0.001]
[1770606661090,0.93205034,2085.9,2085.5,0.001]
[1770606662908,2.13058127,2085.9,2085.5,0.001]
[1770606663090,0.93205034,2085.8,2085.5,0.001]
[1770606664925,0.93205034,2085.8,2085.3,0.001]
[1770606665575,0.93205034,2085.7,2085.3,0.001]
[1770606667109,0.93205034,2085.6,2085.3,0.001]
[1770606668288,0.93205034,2085.6,2085.1,0.001]
[1770606668895,0.93205034,2085.6,2085.5,0.001]
[1770606669218,0.93205034,2085.3,2085.1,0.001]
[1770606669934,1.19879046,2085.5,2085.1,0.001]
[1770606669935,0.93205034,2085.5,2085.1,0.001]
[1770606670524,0.93205034,2085.6,2085.1,0.001]
[1770606671539,5.4806374,2085.8,2085.1,0.001]
[1770606671738,4.28205034,2085.8,2085.1,0.001]
[1770606673529,0.93205034,2086.0,2085.1,0.35651689]
[1770606673763,0.002,2086.1,2085.4,8.64335599]
[1770606673968,2.13246206,2086.1,2085.2,0.35551689]
[1770606674634,0.93405034,2086.1,2085.2,0.35551689]
[1770606674847,0.93205034,2086.0,2085.1,0.001]
[1770606676058,0.93205034,2086.0,2085.1,0.35651689]
[1770606676264,0.7,2085.8,2085.1,0.35651689]
[1770606677161,0.7,2085.8,2085.2,1.19892576]
[1770606677369,1.6187741,2085.8,2085.2,1.19892576]
[1770606677539,0.7,2085.8,2085.2,1.19892576]
[1770606677865,0.9187741,2085.7,2085.1,0.001]
[1770606678043,0.9187741,2085.6,2085.1,0.001]
[1770606679468,0.9187741,2085.5,2085.1,0.001]
[1770606680968,0.9187741,2085.5,2085.3,0.001]
[1770606682070,2.1175326,2085.5,2085.3,0.001]
[1770606682243,0.9187741,2085.4,2085.3,0.001]
[1770606683596,0.9187741,2085.3,2085.1,0.001]
[1770606683883,0.9187741,2085.3,2084.9,0.001]
[1770606684039,0.9187741,2085.3,2084.8,0.001]
[1770606684245,0.9187741,2085.3,2084.6,0.001]
[1770606684466,0.9187741,2085.1,2084.6,0.001]
[1770606685371,0.9187741,2085.1,2084.4,0.001]
[1770606685545,0.9187741,2084.9,2084.4,0.001]
[1770606689355,4.54896261,2085.2,2084.4,0.35751689]
[1770606689550,0.9187741,2085.1,2084.4,0.001]
[1770606691246,0.9187741,2084.9,2084.4,0.001]
[1770606692179,0.9187741,2085.1,2084.4,0.001]
[1770606692359,3.351,2085.0,2084.4,0.001]
[1770606693066,3.351,2085.0,2084.6,0.001]
[1770606693655,2.1177005,2085.2,2084.6,0.001]
[1770606693962,4.2697741,2085.2,2084.6,0.001]
[1770606695562,5.46874499,2085.2,2084.6,0.001]
[1770606696374,0.9187741,2085.1,2084.6,0.001]
[1770606697677,2.11779124,2085.1,2084.6,0.001]
[1770606699087,0.9187741,2085.0,2084.6,0.001]
[1770606700590,2.11781617,2085.0,2084.6,0.001]
[1770606700890,0.9187741,2085.0,2084.6,0.001]
[1770606701887,0.9187741,2084.9,2084.6,0.001]
[1770606702668,1.19915313,2084.9,2084.6,0.001]
[1770606702877,0.9187741,2084.8,2084.6,0.001]
[1770606704679,0.9187741,2085.1,2084.6,0.001]
[1770606705693,3.352,2085.0,2084.6,0.001]
[1770606706487,3.352,2085.0,2084.8,0.001]
[1770606706689,3.354,2085.0,2084.8,0.001]
[1770606707972,3.35232585,2085.0,2084.8,0.001]
[1770606708205,0.00109419,2085.0,2084.8,0.001]
[1770606709199,0.96217819,2085.0,2084.8,0.001]
[1770606711476,0.00109419,2085.0,2084.8,0.001]
[1770606711878,0.00109419,2085.0,2084.6,0.001]
[1770606711879,0.96217819,2085.0,2084.6,0.001]
[1770606713476,0.7,2084.8,2084.6,0.001]
[1770606714089,0.00109419,2085.0,2084.6,0.001]
[1770606714293,0.00109419,2085.0,2084.6,0.35751689]
[1770606715004,0.00109419,2085.0,2084.6,0.001]
[1770606716178,0.00027912,2085.0,2084.6,0.001]
[1770606716486,4.31359791,2085.3,2084.6,0.001]